[Event "*** Titled Tuesday Blitz"]
[Site "Chess.com"]
[Date "2021.04.06"]
[Round "6"]
[White "AwareIdea"]
[Black "Niktlt"]
[Result "1-0"]
[WhiteElo "2467"]
[BlackElo "2570"]
[TimeControl "180+1"]
[EndTime "11:07:14 PDT"]
[Termination "AwareIdea won by resignation"]

1. d4 {[%clk 0:03:00.4]} 1... Nf6 {[%clk 0:02:59.9]} 2. c4 {[%clk 0:02:59.7]}
2... g6 {[%clk 0:02:59.8]} 3. Nc3 {[%clk 0:02:58.6]} 3... Bg7 {[%clk 0:03:00.3]}
4. e4 {[%clk 0:02:58.1]} 4... d6 {[%clk 0:03:00.8]} 5. Nf3 {[%clk 0:02:58.5]}
5... O-O {[%clk 0:03:01.3]} 6. h3 {[%clk 0:02:59]} 6... e5 {[%clk 0:03:00.7]} 7.
d5 {[%clk 0:02:59.6]} 7... Nh5 {[%clk 0:03:01.2]} 8. g3 {[%clk 0:02:58.7]} 8...
Qe8 {[%clk 0:03:01.7]} 9. Nh4 {[%clk 0:02:56.7]} 9... f5 {[%clk 0:03:00.4]} 10.
exf5 {[%clk 0:02:55.8]} 10... gxf5 {[%clk 0:03:01.3]} 11. Be2 {[%clk 0:02:56]}
11... Nf6 {[%clk 0:03:01.6]} 12. Bg5 {[%clk 0:02:53.6]} 12... Na6 {[%clk
0:03:00.3]} 13. Qd2 {[%clk 0:02:51.6]} 13... Nc5 {[%clk 0:02:59.5]} 14. Qc2
{[%clk 0:02:46.3]} 14... a5 {[%clk 0:02:58]} 15. O-O-O {[%clk 0:02:45.2]} 15...
Bd7 {[%clk 0:02:42.1]} 16. Be3 {[%clk 0:02:44.6]} 16... b6 {[%clk 0:02:37]} 17.
Rde1 {[%clk 0:02:26.8]} 17... a4 {[%clk 0:02:35.7]} 18. Rhg1 {[%clk 0:02:19.7]}
18... Kh8 {[%clk 0:02:28.4]} 19. g4 {[%clk 0:02:16.2]} 19... f4 {[%clk
0:02:27.3]} 20. Bxc5 {[%clk 0:02:15.8]} 20... bxc5 {[%clk 0:02:27.2]} 21. Bd3
{[%clk 0:02:10.9]} 21... Rb8 {[%clk 0:01:40.1]} 22. g5 {[%clk 0:02:10.3]} 22...
Ng8 {[%clk 0:01:40.5]} 23. Bxh7 {[%clk 0:02:08.4]} 23... Ne7 {[%clk 0:01:41]}
24. Ng6+ {[%clk 0:01:50.9]} 24... Nxg6 {[%clk 0:01:41]} 25. Bxg6 {[%clk
0:01:51.8]} 25... Qe7 {[%clk 0:01:41.3]} 26. Be4 {[%clk 0:01:35.9]} 26... Rb4
{[%clk 0:01:37.9]} 27. h4 {[%clk 0:01:15.1]} 27... Rxc4 {[%clk 0:01:29.5]} 28.
h5 {[%clk 0:01:14.8]} 28... Rb8 {[%clk 0:01:29.2]} 29. h6 {[%clk 0:01:12.1]}
29... Bf8 {[%clk 0:01:29]} 30. g6 {[%clk 0:01:02.4]} 30... Bxh6 {[%clk 0:01:17]}
31. Rh1 {[%clk 0:01:01.5]} 31... Kg7 {[%clk 0:01:08.7]} 32. Rxh6 {[%clk
0:00:58.5]} 32... Kxh6 {[%clk 0:01:09.6]} 33. Rh1+ {[%clk 0:00:55.3]} 33... Kg5
{[%clk 0:01:09.6]} 34. f3 {[%clk 0:00:55.1]} 34... Bg4 {[%clk 0:00:59.5]} 35.
Qh2 {[%clk 0:00:41.1]} 1-0

[Event "*** Titled Tuesday Blitz"]
[Site "Chess.com"]
[Date "2021.04.06"]
[Round "6"]
[White "hansen"]
[Black "bratkoo"]
[Result "1-0"]
[WhiteElo "2825"]
[BlackElo "2553"]
[TimeControl "180+1"]
[EndTime "11:07:20 PDT"]
[Termination "hansen won by resignation"]

1. Nf3 {[%clk 0:03:00.8]} 1... d5 {[%clk 0:02:59.8]} 2. g3 {[%clk 0:03:00.8]}
2... Nf6 {[%clk 0:02:59.5]} 3. Bg2 {[%clk 0:03:01.7]} 3... c5 {[%clk 0:02:59.1]}
4. O-O {[%clk 0:03:02.6]} 4... Nc6 {[%clk 0:02:58.9]} 5. d3 {[%clk 0:03:03.5]}
5... e5 {[%clk 0:02:58.5]} 6. e4 {[%clk 0:03:04.1]} 6... Be7 {[%clk 0:02:58.9]}
7. exd5 {[%clk 0:03:00.6]} 7... Nxd5 {[%clk 0:02:58.7]} 8. Re1 {[%clk
0:03:01.5]} 8... f6 {[%clk 0:02:58.6]} 9. c3 {[%clk 0:03:01.7]} 9... O-O {[%clk
0:02:57.9]} 10. d4 {[%clk 0:03:02.1]} 10... cxd4 {[%clk 0:02:57.9]} 11. cxd4
{[%clk 0:03:03]} 11... Bg4 {[%clk 0:02:56.6]} 12. Qb3 {[%clk 0:03:01]} 12... Na5
{[%clk 0:02:48.8]} 13. Qa4 {[%clk 0:02:53.2]} 13... Nb4 {[%clk 0:01:37.9]} 14.
dxe5 {[%clk 0:02:51.9]} 14... Bd7 {[%clk 0:01:34.4]} 15. Qd1 {[%clk 0:02:50.9]}
15... Bc6 {[%clk 0:01:33]} 16. Nc3 {[%clk 0:02:49.5]} 16... Nc4 {[%clk
0:01:20.4]} 17. Qb3 {[%clk 0:02:22.1]} 17... b5 {[%clk 0:01:20.4]} 18. a3 {[%clk
0:02:18.5]} 18... Nd3 {[%clk 0:01:19.2]} 19. Nxb5 {[%clk 0:02:14.6]} 19... Nxe1
{[%clk 0:01:04.1]} 20. Nxe1 {[%clk 0:01:35.2]} 20... Bxg2 {[%clk 0:01:03.6]} 21.
Nxg2 {[%clk 0:01:35.1]} 21... Rc8 {[%clk 0:00:53.5]} 22. Ne3 {[%clk 0:01:31.6]}
22... a6 {[%clk 0:00:28.7]} 23. Nd6 {[%clk 0:01:20.8]} 23... Bxd6 {[%clk
0:00:26.8]} 24. Nxc4 {[%clk 0:01:20.1]} 24... Bc5 {[%clk 0:00:19.9]} 25. Nd6+
{[%clk 0:01:14.1]} 25... Kh8 {[%clk 0:00:19.8]} 26. Nxc8 {[%clk 0:01:11.3]}
26... Bxf2+ {[%clk 0:00:19.5]} 27. Kxf2 {[%clk 0:01:07.8]} 27... fxe5+ {[%clk
0:00:19.9]} 28. Kg2 {[%clk 0:01:08.3]} 28... Qxc8 {[%clk 0:00:18.5]} 29. Qd5
{[%clk 0:01:03.4]} 29... Qc2+ {[%clk 0:00:18.5]} 30. Bd2 {[%clk 0:01:01.7]}
30... Qf5 {[%clk 0:00:15.4]} 31. Be3 {[%clk 0:00:59.5]} 31... Qc2+ {[%clk
0:00:14.8]} 32. Qd2 {[%clk 0:00:58.4]} 32... Qe4+ {[%clk 0:00:14.9]} 33. Kg1
{[%clk 0:00:58.8]} 33... h5 {[%clk 0:00:12.6]} 34. Re1 {[%clk 0:00:58.4]} 34...
h4 {[%clk 0:00:11.5]} 35. Bc5 {[%clk 0:00:57.8]} 1-0

[Event "*** Titled Tuesday Blitz"]
[Site "Chess.com"]
[Date "2021.04.06"]
[Round "6"]
[White "Nf3c5"]
[Black "Camels1981"]
[Result "1-0"]
[WhiteElo "2534"]
[BlackElo "2365"]
[TimeControl "180+1"]
[EndTime "11:07:23 PDT"]
[Termination "Nf3c5 won by resignation"]

1. e4 {[%clk 0:03:00.5]} 1... c5 {[%clk 0:02:59.6]} 2. b3 {[%clk 0:02:59.4]}
2... b6 {[%clk 0:02:42.2]} 3. Bb2 {[%clk 0:02:57.1]} 3... Bb7 {[%clk 0:02:42.3]}
4. Nc3 {[%clk 0:02:56.7]} 4... e6 {[%clk 0:02:25.5]} 5. d4 {[%clk 0:02:54.8]}
5... cxd4 {[%clk 0:02:24]} 6. Qxd4 {[%clk 0:02:55.7]} 6... Nc6 {[%clk
0:02:23.1]} 7. Qd2 {[%clk 0:02:55.8]} 7... Nf6 {[%clk 0:02:14.5]} 8. O-O-O
{[%clk 0:02:51.9]} 8... Bb4 {[%clk 0:02:08.7]} 9. Bd3 {[%clk 0:02:45.1]} 9...
Rc8 {[%clk 0:01:58.6]} 10. a3 {[%clk 0:02:40]} 10... Be7 {[%clk 0:01:52.9]} 11.
f4 {[%clk 0:02:34.4]} 11... d5 {[%clk 0:01:49.5]} 12. e5 {[%clk 0:02:29.9]}
12... Nd7 {[%clk 0:01:46.6]} 13. Nf3 {[%clk 0:02:27.9]} 13... Nc5 {[%clk
0:01:39.4]} 14. Kb1 {[%clk 0:02:24.9]} 14... Qc7 {[%clk 0:00:58.6]} 15. h4
{[%clk 0:02:00.2]} 15... O-O {[%clk 0:00:51.2]} 16. Ng5 {[%clk 0:01:25.1]} 16...
h6 {[%clk 0:00:42.1]} 17. Qe2 {[%clk 0:01:23.4]} 17... Nd4 {[%clk 0:00:25]} 18.
Qh5 {[%clk 0:01:20.4]} 18... Nxd3 {[%clk 0:00:23.2]} 19. Rxd3 {[%clk 0:01:17.7]}
19... Nf5 {[%clk 0:00:23.6]} 20. Qd1 {[%clk 0:01:12.7]} 20... hxg5 {[%clk
0:00:21.4]} 21. hxg5 {[%clk 0:01:12]} 21... Bxg5 {[%clk 0:00:03.6]} 22. fxg5
{[%clk 0:01:07.8]} 22... Qxe5 {[%clk 0:00:03.8]} 23. Nxd5 {[%clk 0:00:49.9]}
23... Qxb2+ {[%clk 0:00:02.5]} 24. Kxb2 {[%clk 0:00:49.5]} 24... Bxd5 {[%clk
0:00:03.4]} 25. Qh5 {[%clk 0:00:45.6]} 1-0

[Event "*** Titled Tuesday Blitz"]
[Site "Chess.com"]
[Date "2021.04.06"]
[Round "6"]
[White "2Tilted"]
[Black "IMAghasiyevKamal"]
[Result "0-1"]
[WhiteElo "2335"]
[BlackElo "2515"]
[TimeControl "180+1"]
[EndTime "11:07:23 PDT"]
[Termination "IMAghasiyevKamal won by checkmate"]

1. d4 {[%clk 0:03:00.9]} 1... d5 {[%clk 0:02:58.6]} 2. c4 {[%clk 0:03:01.1]}
2... e6 {[%clk 0:02:58.7]} 3. Nf3 {[%clk 0:03:01.8]} 3... Nf6 {[%clk 0:02:58.8]}
4. g3 {[%clk 0:03:02.2]} 4... a6 {[%clk 0:02:42.6]} 5. Bg2 {[%clk 0:02:55.3]}
5... dxc4 {[%clk 0:02:42.4]} 6. a4 {[%clk 0:02:43.2]} 6... Bb4+ {[%clk
0:02:37.5]} 7. Nc3 {[%clk 0:02:38.5]} 7... Nc6 {[%clk 0:02:37.3]} 8. O-O {[%clk
0:02:36]} 8... Rb8 {[%clk 0:02:37.5]} 9. e3 {[%clk 0:01:43.4]} 9... b5 {[%clk
0:02:35.6]} 10. Qe2 {[%clk 0:01:43.4]} 10... O-O {[%clk 0:02:34.7]} 11. axb5
{[%clk 0:01:39.9]} 11... axb5 {[%clk 0:02:34.6]} 12. Rd1 {[%clk 0:01:37.8]}
12... Na5 {[%clk 0:02:25.4]} 13. Ne5 {[%clk 0:01:23.2]} 13... Bb7 {[%clk
0:02:25.3]} 14. e4 {[%clk 0:01:15.3]} 14... Nb3 {[%clk 0:02:23.4]} 15. Ra7
{[%clk 0:01:11.5]} 15... Nxd4 {[%clk 0:02:20.7]} 16. Qd2 {[%clk 0:00:48.9]}
16... Bc5 {[%clk 0:02:08.5]} 17. Ra5 {[%clk 0:00:41]} 17... Qd6 {[%clk 0:02:03]}
18. Nxb5 {[%clk 0:00:29.7]} 18... Nxb5 {[%clk 0:01:59.7]} 19. Qxd6 {[%clk
0:00:29.4]} 19... cxd6 {[%clk 0:01:55.9]} 20. Rxb5 {[%clk 0:00:29.8]} 20... Bxe4
{[%clk 0:01:54.8]} 21. Rxb8 {[%clk 0:00:25.7]} 21... Rxb8 {[%clk 0:01:53.1]} 22.
Bxe4 {[%clk 0:00:23.5]} 22... dxe5 {[%clk 0:01:35.5]} 23. Bf3 {[%clk 0:00:17.5]}
23... Bd4 {[%clk 0:01:32.5]} 24. Be2 {[%clk 0:00:17.2]} 24... Ne4 {[%clk
0:01:21.4]} 25. Bxc4 {[%clk 0:00:16.9]} 25... Bxf2+ {[%clk 0:01:16.1]} 26. Kg2
{[%clk 0:00:16.7]} 26... Bd4 {[%clk 0:01:15.3]} 27. b3 {[%clk 0:00:17]} 27... g6
{[%clk 0:01:07.5]} 28. Kf3 {[%clk 0:00:14]} 28... Nd6 {[%clk 0:01:04.1]} 29. Be3
{[%clk 0:00:13.7]} 29... Nxc4 {[%clk 0:01:01.6]} 30. Bxd4 {[%clk 0:00:08.7]}
30... Rxb3+ {[%clk 0:00:59.3]} 31. Ke4 {[%clk 0:00:07]} 31... f5# {[%clk
0:00:54]} 0-1

[Event "*** Titled Tuesday Blitz"]
[Site "Chess.com"]
[Date "2021.04.06"]
[Round "6"]
[White "Cptn2"]
[Black "Rish_97"]
[Result "0-1"]
[WhiteElo "2533"]
[BlackElo "2697"]
[TimeControl "180+1"]
[EndTime "11:07:24 PDT"]
[Termination "Rish_97 won by resignation"]

1. e4 {[%clk 0:03:00.9]} 1... c5 {[%clk 0:02:56.4]} 2. Nf3 {[%clk 0:02:59.5]}
2... d6 {[%clk 0:02:56.8]} 3. a3 {[%clk 0:02:58.8]} 3... Nf6 {[%clk 0:02:56.2]}
4. Nc3 {[%clk 0:02:58.6]} 4... g6 {[%clk 0:02:56.5]} 5. b4 {[%clk 0:02:57.9]}
5... Bg7 {[%clk 0:02:56.8]} 6. Bc4 {[%clk 0:02:57.9]} 6... O-O {[%clk
0:02:52.9]} 7. O-O {[%clk 0:02:48.7]} 7... Nxe4 {[%clk 0:02:47.9]} 8. Nxe4
{[%clk 0:02:48.8]} 8... Bxa1 {[%clk 0:02:48.3]} 9. Nc3 {[%clk 0:02:37.7]} 9...
Nc6 {[%clk 0:02:41]} 10. bxc5 {[%clk 0:02:22.2]} 10... dxc5 {[%clk 0:02:40.3]}
11. Qe1 {[%clk 0:02:22.7]} 11... Bg4 {[%clk 0:02:31.8]} 12. Qe4 {[%clk
0:02:10.2]} 12... Bxf3 {[%clk 0:02:25.5]} 13. Qxf3 {[%clk 0:02:11.1]} 13... Ne5
{[%clk 0:02:24.4]} 14. Qe4 {[%clk 0:02:08.3]} 14... Qd4 {[%clk 0:02:17.7]} 15.
Bd5 {[%clk 0:01:53.7]} 15... e6 {[%clk 0:01:45.3]} 16. Bxb7 {[%clk 0:01:44]}
16... Rab8 {[%clk 0:01:45.4]} 17. Na4 {[%clk 0:01:42]} 17... Rxb7 {[%clk
0:01:39.3]} 18. Qxb7 {[%clk 0:01:40.1]} 18... Qxa4 {[%clk 0:01:39.3]} 19. c3
{[%clk 0:01:38.9]} 19... Nd3 {[%clk 0:01:35.4]} 20. Qb1 {[%clk 0:01:37.2]} 20...
c4 {[%clk 0:01:15.6]} 21. Qxa1 {[%clk 0:01:34.9]} 21... Rb8 {[%clk 0:01:14.5]}
22. h3 {[%clk 0:01:19.5]} 22... Qc2 {[%clk 0:01:11]} 23. a4 {[%clk 0:01:12.8]}
23... Rb1 {[%clk 0:01:10.3]} 24. Qxb1 {[%clk 0:00:58.1]} 24... Qxb1 {[%clk
0:01:09.1]} 25. Ba3 {[%clk 0:00:59]} 25... Qb3 {[%clk 0:01:05.2]} 26. Be7 {[%clk
0:00:58]} 26... Qxa4 {[%clk 0:01:05.1]} 27. Bf6 {[%clk 0:00:57.7]} 27... Qb5
{[%clk 0:01:01.5]} 28. Ra1 {[%clk 0:00:56.9]} 28... a5 {[%clk 0:01:01.6]} 29.
Be7 {[%clk 0:00:51.2]} 29... a4 {[%clk 0:01:00.3]} 30. h4 {[%clk 0:00:49.3]}
30... f5 {[%clk 0:01:00.1]} 31. g3 {[%clk 0:00:41.6]} 31... Kf7 {[%clk 0:01:00]}
32. Bd6 {[%clk 0:00:41.7]} 32... e5 {[%clk 0:00:59.6]} 33. Ba3 {[%clk
0:00:31.7]} 33... h5 {[%clk 0:00:56.2]} 34. Bd6 {[%clk 0:00:31.8]} 34... Qb6
{[%clk 0:00:55]} 0-1

[Event "*** Titled Tuesday Blitz"]
[Site "Chess.com"]
[Date "2021.04.06"]
[Round "6"]
[White "queen_iryna"]
[Black "IANOV0007"]
[Result "0-1"]
[WhiteElo "2321"]
[BlackElo "2471"]
[TimeControl "180+1"]
[EndTime "11:07:27 PDT"]
[Termination "IANOV0007 won by resignation"]

1. e4 {[%clk 0:03:00.9]} 1... d6 {[%clk 0:02:59.2]} 2. d4 {[%clk 0:03:01.1]}
2... Nf6 {[%clk 0:02:58.7]} 3. Nc3 {[%clk 0:03:01.3]} 3... c6 {[%clk 0:02:58.9]}
4. Nf3 {[%clk 0:02:59.4]} 4... Bg4 {[%clk 0:02:57.4]} 5. h3 {[%clk 0:02:55]}
5... Bh5 {[%clk 0:02:56.5]} 6. Bd3 {[%clk 0:02:36.5]} 6... e6 {[%clk 0:02:55.6]}
7. g4 {[%clk 0:02:26.8]} 7... Bg6 {[%clk 0:02:54.7]} 8. Bg5 {[%clk 0:02:26.7]}
8... Be7 {[%clk 0:02:53.6]} 9. Qd2 {[%clk 0:02:23.5]} 9... d5 {[%clk 0:02:53]}
10. exd5 {[%clk 0:02:00.5]} 10... cxd5 {[%clk 0:02:52.3]} 11. Ne5 {[%clk
0:01:45.5]} 11... Nc6 {[%clk 0:02:46.8]} 12. Bxg6 {[%clk 0:01:22.3]} 12... hxg6
{[%clk 0:02:45.5]} 13. Nxc6 {[%clk 0:01:14.6]} 13... bxc6 {[%clk 0:02:44.5]} 14.
O-O-O {[%clk 0:01:06.3]} 14... Rb8 {[%clk 0:02:43.5]} 15. Bxf6 {[%clk
0:00:52.9]} 15... Bxf6 {[%clk 0:02:38.7]} 16. Na4 {[%clk 0:00:52]} 16... Be7
{[%clk 0:02:34.8]} 17. Nc5 {[%clk 0:00:47.8]} 17... Qb6 {[%clk 0:02:23.5]} 18.
Nb3 {[%clk 0:00:47.4]} 18... Bb4 {[%clk 0:02:17.6]} 19. Qf4 {[%clk 0:00:43]}
19... a5 {[%clk 0:02:08]} 20. a4 {[%clk 0:00:42.7]} 20... Rb7 {[%clk 0:01:56.9]}
21. h4 {[%clk 0:00:41.3]} 21... Qc7 {[%clk 0:01:56.1]} 22. Qxc7 {[%clk
0:00:34.3]} 22... Rxc7 {[%clk 0:01:55.3]} 23. c3 {[%clk 0:00:33.7]} 23... Bd6
{[%clk 0:01:54.4]} 24. h5 {[%clk 0:00:31]} 24... gxh5 {[%clk 0:01:50]} 25. Rxh5
{[%clk 0:00:31.9]} 25... Rxh5 {[%clk 0:01:48.9]} 26. gxh5 {[%clk 0:00:32.8]}
26... Ra7 {[%clk 0:01:44.2]} 27. Kc2 {[%clk 0:00:32.8]} 27... f6 {[%clk
0:01:42.4]} 28. Rg1 {[%clk 0:00:32.7]} 28... Kf7 {[%clk 0:01:42.3]} 29. Nd2
{[%clk 0:00:31.6]} 29... c5 {[%clk 0:01:39.4]} 30. Nf3 {[%clk 0:00:30.6]} 30...
Rc7 {[%clk 0:01:35.8]} 31. Kd3 {[%clk 0:00:25]} 31... c4+ {[%clk 0:01:35.2]} 32.
Kc2 {[%clk 0:00:25.1]} 32... Rb7 {[%clk 0:01:34.8]} 33. Rg6 {[%clk 0:00:19]}
33... Bf4 {[%clk 0:01:32.8]} 34. Rg4 {[%clk 0:00:17.4]} 34... Bd6 {[%clk
0:01:28.9]} 35. Rg6 {[%clk 0:00:17.2]} 35... Rb8 {[%clk 0:01:28.6]} 36. Rg1
{[%clk 0:00:13.8]} 36... Rh8 {[%clk 0:01:27.7]} 37. Rh1 {[%clk 0:00:12.9]} 37...
Rh6 {[%clk 0:01:24.9]} 38. b3 {[%clk 0:00:12.1]} 38... cxb3+ {[%clk 0:01:23.5]}
39. Kxb3 {[%clk 0:00:13]} 39... Rh8 {[%clk 0:01:22.5]} 40. c4 {[%clk 0:00:12.4]}
40... Rb8+ {[%clk 0:01:20.8]} 41. Kc3 {[%clk 0:00:12.4]} 41... dxc4 {[%clk
0:01:20.4]} 42. h6 {[%clk 0:00:10]} 42... gxh6 {[%clk 0:01:18.3]} 43. Rxh6
{[%clk 0:00:10.9]} 43... Rb3+ {[%clk 0:01:17.4]} 44. Kxc4 {[%clk 0:00:10.4]}
44... Rxf3 {[%clk 0:01:17.2]} 0-1

[Event "*** Titled Tuesday Blitz"]
[Site "Chess.com"]
[Date "2021.04.06"]
[Round "6"]
[White "mr65"]
[Black "malakismayil"]
[Result "1-0"]
[WhiteElo "2156"]
[BlackElo "2285"]
[TimeControl "180+1"]
[EndTime "11:07:27 PDT"]
[Termination "mr65 won on time"]

1. e4 {[%clk 0:03:00.9]} 1... e5 {[%clk 0:02:58.7]} 2. Nf3 {[%clk 0:03:00.4]}
2... Nc6 {[%clk 0:02:58.2]} 3. Bb5 {[%clk 0:02:58.6]} 3... d6 {[%clk 0:02:55.2]}
4. O-O {[%clk 0:02:57]} 4... Nf6 {[%clk 0:02:54.6]} 5. h3 {[%clk 0:02:56.4]}
5... Be7 {[%clk 0:02:54.1]} 6. Re1 {[%clk 0:02:55]} 6... O-O {[%clk 0:02:53.9]}
7. c3 {[%clk 0:02:54.9]} 7... Bd7 {[%clk 0:02:49.6]} 8. Ba4 {[%clk 0:02:53.9]}
8... Re8 {[%clk 0:02:37.3]} 9. d4 {[%clk 0:02:51.9]} 9... exd4 {[%clk
0:02:34.6]} 10. cxd4 {[%clk 0:02:51.1]} 10... Nb8 {[%clk 0:02:32.3]} 11. Bb3
{[%clk 0:02:47.4]} 11... Bc6 {[%clk 0:02:19.2]} 12. Nc3 {[%clk 0:02:45.6]} 12...
h6 {[%clk 0:02:03.1]} 13. Bf4 {[%clk 0:02:40.1]} 13... Bf8 {[%clk 0:01:23.5]}
14. e5 {[%clk 0:02:39.5]} 14... dxe5 {[%clk 0:01:14.8]} 15. Nxe5 {[%clk
0:02:39.1]} 15... Bd5 {[%clk 0:01:08.1]} 16. Nxd5 {[%clk 0:02:37.7]} 16... Nxd5
{[%clk 0:01:09]} 17. Qf3 {[%clk 0:02:28.2]} 17... c6 {[%clk 0:01:03.1]} 18. Nxf7
{[%clk 0:02:24.2]} 18... Rxe1+ {[%clk 0:00:53.2]} 19. Rxe1 {[%clk 0:02:23.4]}
19... Qf6 {[%clk 0:00:51.7]} 20. Ne5 {[%clk 0:01:58.5]} 20... Na6 {[%clk
0:00:27]} 21. Bxd5+ {[%clk 0:01:48.8]} 21... cxd5 {[%clk 0:00:27.9]} 22. Qxd5+
{[%clk 0:01:48.1]} 22... Kh7 {[%clk 0:00:27.5]} 23. Qe4+ {[%clk 0:01:46.2]}
23... Kg8 {[%clk 0:00:23.9]} 24. Bg3 {[%clk 0:01:44.4]} 24... Rd8 {[%clk
0:00:19.1]} 25. Bh4 {[%clk 0:01:22.4]} 25... g5 {[%clk 0:00:17.6]} 26. Bg3
{[%clk 0:01:22]} 26... Bg7 {[%clk 0:00:14.6]} 27. Qxb7 {[%clk 0:01:13.2]} 27...
Rxd4 {[%clk 0:00:11.9]} 28. Qc8+ {[%clk 0:01:12.2]} 28... Kh7 {[%clk 0:00:10.3]}
29. Qc2+ {[%clk 0:01:10.3]} 29... Kg8 {[%clk 0:00:08.2]} 30. Nf3 {[%clk
0:01:10.2]} 30... Rd8 {[%clk 0:00:05.6]} 31. Qc4+ {[%clk 0:01:07.9]} 31... Kh8
{[%clk 0:00:04.3]} 32. Re6 {[%clk 0:01:07.5]} 32... Rd1+ {[%clk 0:00:01.9]} 33.
Kh2 {[%clk 0:01:06.8]} 33... Qf8 {[%clk 0:00:01.7]} 34. Qe2 {[%clk 0:00:58.6]}
1-0

[Event "*** Titled Tuesday Blitz"]
[Site "Chess.com"]
[Date "2021.04.06"]
[Round "6"]
[White "alexrustemov"]
[Black "AlexTriapishko"]
[Result "0-1"]
[WhiteElo "2667"]
[BlackElo "2829"]
[TimeControl "180+1"]
[EndTime "11:07:32 PDT"]
[Termination "AlexTriapishko won by resignation"]

1. d4 {[%clk 0:03:00.9]} 1... Nf6 {[%clk 0:02:57]} 2. c4 {[%clk 0:03:00.3]} 2...
e6 {[%clk 0:02:56.9]} 3. Nf3 {[%clk 0:02:59.9]} 3... d5 {[%clk 0:02:56.4]} 4.
Nc3 {[%clk 0:02:59.4]} 4... dxc4 {[%clk 0:02:51.5]} 5. e4 {[%clk 0:02:57.8]}
5... Bb4 {[%clk 0:02:51.6]} 6. Bg5 {[%clk 0:02:57.5]} 6... c5 {[%clk 0:02:43.3]}
7. Bxc4 {[%clk 0:02:56.4]} 7... cxd4 {[%clk 0:02:41.2]} 8. Nxd4 {[%clk 0:02:57]}
8... Bxc3+ {[%clk 0:02:33.5]} 9. bxc3 {[%clk 0:02:56.7]} 9... Qa5 {[%clk
0:02:31.7]} 10. Bb5+ {[%clk 0:02:56.4]} 10... Bd7 {[%clk 0:02:25.9]} 11. Bxf6
{[%clk 0:02:55.9]} 11... gxf6 {[%clk 0:02:26]} 12. Qb3 {[%clk 0:02:47.3]} 12...
a6 {[%clk 0:01:59.4]} 13. Be2 {[%clk 0:02:46.6]} 13... Nc6 {[%clk 0:01:57.4]}
14. O-O {[%clk 0:02:46]} 14... Qc7 {[%clk 0:01:32.9]} 15. Rab1 {[%clk
0:02:42.8]} 15... Na5 {[%clk 0:01:19.3]} 16. Qa3 {[%clk 0:02:42.4]} 16... Rc8
{[%clk 0:01:18.8]} 17. Rfc1 {[%clk 0:02:33.5]} 17... Qc5 {[%clk 0:01:14.9]} 18.
Qb2 {[%clk 0:02:30.7]} 18... Ke7 {[%clk 0:01:06]} 19. Nb3 {[%clk 0:02:24.9]}
19... Nxb3 {[%clk 0:01:01.4]} 20. axb3 {[%clk 0:02:25.2]} 20... Bc6 {[%clk
0:00:58.1]} 21. Bf3 {[%clk 0:02:22.9]} 21... Rhg8 {[%clk 0:00:50.1]} 22. Qe2
{[%clk 0:02:21.3]} 22... Qe5 {[%clk 0:00:34.1]} 23. g3 {[%clk 0:02:16.5]} 23...
h5 {[%clk 0:00:28.7]} 24. Qe3 {[%clk 0:02:04.5]} 24... h4 {[%clk 0:00:24.7]} 25.
Re1 {[%clk 0:02:01.6]} 25... hxg3 {[%clk 0:00:23.1]} 26. hxg3 {[%clk 0:02:01.7]}
26... f5 {[%clk 0:00:13.3]} 27. exf5 {[%clk 0:01:59.5]} 27... Rxg3+ {[%clk
0:00:13.4]} 28. fxg3 {[%clk 0:01:30]} 28... Qxg3+ {[%clk 0:00:14.3]} 29. Kf1
{[%clk 0:01:30.4]} 29... Bxf3 {[%clk 0:00:14.5]} 30. Qg1 {[%clk 0:01:23.1]}
30... Qh3+ {[%clk 0:00:11.7]} 31. Kf2 {[%clk 0:01:23.6]} 31... Qxf5 {[%clk
0:00:12.3]} 32. Qg7 {[%clk 0:00:53.7]} 32... Be4+ {[%clk 0:00:10.9]} 33. Kg1
{[%clk 0:00:48.3]} 33... Bxb1 {[%clk 0:00:09.7]} 34. Rf1 {[%clk 0:00:48.3]}
34... Qg6+ {[%clk 0:00:09.9]} 0-1

[Event "*** Titled Tuesday Blitz"]
[Site "Chess.com"]
[Date "2021.04.06"]
[Round "6"]
[White "AttilaTurzo"]
[Black "serhanberat_ozdemir"]
[Result "1-0"]
[WhiteElo "2520"]
[BlackElo "2621"]
[TimeControl "180+1"]
[EndTime "11:07:32 PDT"]
[Termination "AttilaTurzo won on time"]

1. d4 {[%clk 0:03:00.9]} 1... Nf6 {[%clk 0:02:59.8]} 2. Nf3 {[%clk 0:03:01.1]}
2... g6 {[%clk 0:03:00.3]} 3. Bg5 {[%clk 0:03:01.6]} 3... Bg7 {[%clk 0:03:00.4]}
4. c3 {[%clk 0:03:02.4]} 4... O-O {[%clk 0:03:00.4]} 5. Nbd2 {[%clk 0:03:03.1]}
5... c5 {[%clk 0:02:59.6]} 6. dxc5 {[%clk 0:03:01]} 6... Qc7 {[%clk 0:02:48.1]}
7. Nb3 {[%clk 0:02:45.2]} 7... Na6 {[%clk 0:02:45.2]} 8. Bxf6 {[%clk 0:02:20]}
8... Bxf6 {[%clk 0:02:43.5]} 9. Qd5 {[%clk 0:02:20.3]} 9... e6 {[%clk 0:01:21]}
10. Qd6 {[%clk 0:02:18.5]} 10... Re8 {[%clk 0:01:03.4]} 11. e4 {[%clk
0:02:10.8]} 11... Be7 {[%clk 0:01:02.8]} 12. Qxc7 {[%clk 0:02:04.4]} 12... Nxc7
{[%clk 0:01:03.6]} 13. O-O-O {[%clk 0:02:04.5]} 13... a5 {[%clk 0:00:53]} 14. a4
{[%clk 0:01:58.9]} 14... Na6 {[%clk 0:00:49.9]} 15. Bxa6 {[%clk 0:01:53.5]}
15... Rxa6 {[%clk 0:00:49.6]} 16. Ne5 {[%clk 0:01:52.9]} 16... Rd8 {[%clk
0:00:41.5]} 17. Nc4 {[%clk 0:01:44.4]} 17... Rc6 {[%clk 0:00:20]} 18. Ncxa5
{[%clk 0:01:22.6]} 18... Ra6 {[%clk 0:00:19]} 19. Nc4 {[%clk 0:01:19.6]} 19...
Rxa4 {[%clk 0:00:18]} 20. Ncd2 {[%clk 0:01:10.2]} 20... d6 {[%clk 0:00:15.6]}
21. cxd6 {[%clk 0:01:09.7]} 21... Bxd6 {[%clk 0:00:16.1]} 22. Kc2 {[%clk
0:01:05.8]} 22... b5 {[%clk 0:00:12.1]} 23. g3 {[%clk 0:00:56.1]} 23... Bb7
{[%clk 0:00:12.2]} 24. f4 {[%clk 0:00:55.7]} 24... Be7 {[%clk 0:00:09.3]} 25.
Rhe1 {[%clk 0:00:55]} 25... f6 {[%clk 0:00:07.9]} 26. Nd4 {[%clk 0:00:51.9]}
26... Kf7 {[%clk 0:00:07.7]} 27. Nxb5 {[%clk 0:00:50.8]} 27... Ba6 {[%clk
0:00:05.9]} 28. Nd4 {[%clk 0:00:46.9]} 28... Rc8 {[%clk 0:00:02.4]} 29. Ra1
{[%clk 0:00:42.6]} 29... Rxa1 {[%clk 0:00:01.6]} 30. Rxa1 {[%clk 0:00:42.2]} 1-0